bitfinex-derivatives/quotes_SOLF0:USTF0_20250911
["timestamp","ask_amount","ask_price","bid_price","bid_amount"]
[1757611152880,5.21086656,227.18,227.0,13.4633483]
[1757611153688,7.44,227.17,227.0,13.4633483]
[1757611153983,5.21086656,227.18,227.0,13.4633483]
[1757611154181,7.44,227.17,227.0,13.4633483]
[1757611154386,7.44,227.12,227.0,0.09]
[1757611157190,0.02829366,227.08,227.0,0.09]
[1757611158391,2.18966464,227.07,227.0,0.09]
[1757611158792,7.44,227.06,226.99,9.1]
[1757611158992,2.18966464,227.04,226.98,12.99506422]
[1757611159297,2.18966464,227.04,226.96,277.13304526]
[1757611159990,0.02971186,227.02,226.96,277.13304526]
[1757611160493,0.02971186,227.02,226.96,165.41304526]
[1757611161593,2.18966464,227.01,226.96,165.41304526]
[1757611161798,7.44,227.0,226.96,165.41304526]
[1757611162693,2.18966464,227.01,226.96,0.09]
[1757611162898,2.18966464,227.01,226.94,0.09]
[1757611163093,0.02971186,227.02,226.94,0.09]
[1757611164397,0.02971186,227.02,226.95,0.09]
[1757611164996,0.02971186,227.02,226.97,0.09]
[1757611165593,0.02971186,227.02,226.95,0.09]
[1757611166704,0.02971186,227.02,226.96,111.56]
[1757611167200,0.02971186,227.02,226.95,0.09]
[1757611167497,2.18966464,227.01,226.95,111.52]
[1757611168194,2.18966464,227.01,226.93,13.23182672]
[1757611168401,2.18966464,227.01,226.94,111.46]
[1757611168997,0.02971186,227.02,226.9,0.09]
[1757611168998,2.18966464,226.98,226.9,0.09]
[1757611169197,2.18966464,226.95,226.91,111.48]
[1757611169399,9.17966464,226.95,226.91,111.48]
[1757611169994,6.99,226.94,226.91,111.48]
[1757611170402,6.99,226.94,226.87,111.46]
[1757611170899,2.18966464,226.92,226.87,111.46]
[1757611171097,2.18966464,226.89,226.83,0.09]
[1757611171402,2.18966464,226.89,226.76,167.60001629]
[1757611171403,2.18966464,226.89,226.85,0.09]
[1757611172093,2.18966464,226.89,226.83,66.4]
[1757611172094,2.18966464,226.89,226.84,0.09]
[1757611172296,6.99,226.92,226.83,66.49]
[1757611173207,6.99,226.92,226.83,0.09]
[1757611174201,6.99,226.92,226.76,165.41035165]
[1757611174403,6.99,226.92,226.77,0.09]
[1757611174598,6.99,226.92,226.77,111.41]
[1757611175005,6.99,226.92,226.78,0.09]
[1757611175202,6.99,226.92,226.79,62.0]
[1757611175501,6.99,226.92,226.8,0.09]
[1757611175903,6.99,226.92,226.81,111.34]
[1757611176212,6.99,226.92,226.82,0.09]
[1757611179108,0.02793241,226.89,226.82,0.09]
[1757611180811,0.02793241,226.89,226.82,111.35]
[1757611181711,0.02793241,226.89,226.82,0.09]
[1757611182013,0.02793241,226.89,226.82,111.23]
[1757611182910,0.02793241,226.89,226.83,0.09]
[1757611184107,0.02793241,226.89,226.84,111.12]
[1757611184312,0.02793241,226.89,226.85,0.09]
[1757611184808,0.02793241,226.89,226.84,111.12]
[1757611185009,0.02793241,226.89,226.85,0.09]
[1757611185215,0.02793241,226.89,226.84,111.12]
[1757611185612,0.02793241,226.89,226.85,0.09]
[1757611186216,0.02793241,226.89,226.84,111.12]
[1757611186417,0.02793241,226.89,226.85,0.09]
[1757611186718,0.02793241,226.89,226.84,111.12]
[1757611187009,0.02793241,226.89,226.85,0.09]
[1757611187316,0.02793241,226.89,226.86,111.06]
[1757611187613,0.02793241,226.89,226.87,111.15]
[1757611189713,0.02793241,226.89,226.87,0.09]
[1757611189919,0.02793241,226.89,226.87,110.99]
[1757611190120,0.02793241,226.89,226.84,110.88]
[1757611190413,0.02793241,226.89,226.84,110.96]
[1757611190613,7.01793241,226.89,226.84,110.96]
[1757611190811,6.99,226.88,226.84,110.88]
[1757611191012,7.01793241,226.89,226.8,0.08]
[1757611191211,7.01793241,226.89,226.81,110.86]
[1757611191910,7.01793241,226.89,226.8,0.08]
[1757611192106,7.01793241,226.89,226.81,110.82]
[1757611193014,7.01793241,226.89,226.82,110.82]
[1757611193213,7.01793241,226.89,226.8,0.08]
[1757611193413,7.01793241,226.89,226.81,110.76]
[1757611193414,6.99,226.88,226.81,110.76]
[1757611197324,6.99,226.88,226.8,0.08]
[1757611198120,6.99,226.88,226.79,110.66]
[1757611198321,7.11,226.88,226.76,165.49035165]
[1757611198522,7.11,226.88,226.78,0.08]
[1757611199326,13.3793835,226.96,226.78,0.08]
[1757611199327,7.11,226.92,226.78,0.08]
[1757611199517,0.02913572,226.85,226.78,0.08]
[1757611199714,0.02913572,226.85,226.8,0.08]
[1757611199924,7.11,226.97,226.8,0.08]
[1757611200128,7.11,226.97,226.81,0.08]
[1757611200429,0.02977617,226.91,226.82,65.5]
[1757611200722,0.02977617,226.91,226.83,0.08]
[1757611201719,0.02977617,226.91,226.84,105.36]
[1757611202924,0.02977617,226.91,226.84,110.64]
[1757611203420,0.02977617,226.91,226.83,62.08]
[1757611203623,0.02977617,226.91,226.76,165.41035165]
[1757611203624,10.53688004,226.9,226.79,0.08]
[1757611203921,10.53688004,226.9,226.78,110.66]
[1757611203922,3.42688004,226.9,226.78,110.66]
[1757611204128,7.11,226.89,226.78,110.66]
[1757611204328,3.42688004,226.9,226.76,165.41035165]
[1757611204620,7.11,226.89,226.77,110.68]
[1757611204922,7.11,226.89,226.78,0.08]
[1757611206529,7.11,226.89,226.78,62.08]
[1757611206730,0.02780624,226.86,226.78,62.08]
[1757611207030,0.02780624,226.86,226.79,0.08]
[1757611209419,7.13780624,226.86,226.8,110.6]
[1757611210520,7.11,226.85,226.8,110.6]
[1757611211026,7.13780624,226.86,226.8,110.6]
[1757611211428,0.02780624,226.86,226.8,110.6]
[1757611212527,0.02780624,226.86,226.8,172.6]
[1757611212833,0.02780624,226.86,226.8,172.68]
[1757611214034,0.02780624,226.86,226.8,110.68]
[1757611214329,0.02780624,226.86,226.8,0.08]
[1757611214830,0.02780624,226.86,226.79,110.58]
[1757611215131,0.02780624,226.86,226.8,0.08]
[1757611216230,0.02780624,226.86,226.8,5.00751351]
[1757611217028,0.02780624,226.86,226.81,62.0]
[1757611217424,7.11,226.97,226.83,4.92751351]
[1757611217629,7.11,226.97,226.86,0.05]
[1757611217834,7.11,226.97,226.87,0.05]
[1757611218136,7.11,226.97,226.87,4.97751351]
[1757611219429,7.11,226.97,226.9,0.02865456]
[1757611219632,7.11,226.97,226.9,110.62865456]
[1757611221641,7.11,226.97,226.9,0.02865456]
[1757611223440,296.16,227.06,226.91,0.05]
[1757611223441,0.03295735,226.96,226.91,0.05]
[1757611223639,0.03295735,226.96,226.9,4.95616807]
[1757611223841,7.11,227.02,226.91,0.05]
[1757611224040,7.11,227.02,226.91,0.08296194]
[1757611224641,0.02806332,226.99,226.91,0.08296194]
[1757611225036,0.02806332,226.99,226.92,62.0]
[1757611225441,0.02806332,226.99,226.93,0.05]
[1757611228644,0.02806332,226.99,226.94,157.06]
[1757611228947,0.02806332,226.99,226.95,0.04]
[1757611229446,0.02806332,226.99,226.93,0.04]
[1757611229648,0.02806332,226.99,226.97,0.04]
[1757611229847,0.02806332,226.99,226.98,0.04]
[1757611230253,6.84,227.11,226.98,0.44]
[1757611230442,6.84,227.11,226.96,110.39302718]
[1757611230740,6.84,227.11,226.96,110.36]
[1757611231537,4.89614567,227.29,227.01,0.03337057]
[1757611231741,3.42688004,227.23,227.01,4.96088408]
[1757611231944,6.84,227.22,227.02,4.92751351]
[1757611232247,6.84,227.22,227.1,0.03185384]
[1757611232449,6.84,227.22,227.11,14.32]
[1757611235752,6.84,227.22,227.12,62.0]
[1757611236351,6.84,227.22,227.15,0.0309519]
[1757611244461,6.84,227.2,227.15,0.0009519]
[1757611244964,0.03262936,227.21,227.15,0.0009519]
[1757611245160,6.84,227.2,227.15,0.0009519]
[1757611246665,0.03262936,227.21,227.15,0.0009519]
[1757611246857,6.84,227.2,227.15,0.0009519]
[1757611247165,0.03262936,227.21,227.15,0.0009519]
[1757611247361,6.84,227.2,227.15,0.0009519]
[1757611247572,0.03262936,227.21,227.15,0.0009519]
[1757611248469,6.84,227.2,227.15,0.0009519]
[1757611248969,0.03262936,227.21,227.15,0.0009519]
[1757611249469,6.84,227.2,227.15,0.0009519]
[1757611249764,0.03262936,227.21,227.15,0.0009519]
[1757611249972,6.84,227.2,227.15,0.0009519]
[1757611250164,0.03262936,227.21,227.15,0.0009519]
[1757611250760,6.84,227.2,227.15,0.0009519]
[1757611252373,0.03262936,227.21,227.15,0.0009519]
[1757611252674,6.84,227.2,227.15,0.0009519]
[1757611253065,0.03262936,227.21,227.15,0.0009519]
[1757611253269,0.03262936,227.21,227.15,0.0409519]
[1757611254575,6.87262936,227.21,227.15,0.0009519]
[1757611261174,0.03262936,227.21,227.15,0.0009519]
[1757611261474,7.2,227.2,227.15,0.0009519]
[1757611262274,0.03262936,227.21,227.15,0.0009519]
[1757611262472,7.2,227.2,227.15,0.0009519]
[1757611264977,0.03262936,227.21,227.15,0.0009519]
[1757611265476,7.2,227.2,227.15,0.0009519]
[1757611267876,0.03262936,227.21,227.15,0.0009519]
[1757611268279,7.2,227.2,227.15,0.0009519]
[1757611277889,7.2,227.18,227.15,0.0009519]
[1757611278784,4.89614567,227.19,227.15,0.0009519]
[1757611278785,7.2,227.16,227.15,0.0009519]
[1757611278991,14.19956681,227.16,227.15,0.0009519]
[1757611279676,14.63956681,227.16,227.15,0.0009519]
[1757611284182,7.43956681,227.16,227.15,0.0009519]
[1757611284486,117.41956681,227.16,227.15,0.0009519]
[1757611286593,122.31571248,227.16,227.15,0.0009519]
[1757611286894,7.2,227.15,226.9,0.05]
[1757611287089,7.2,227.13,226.9,0.05]
[1757611287286,7.2,227.11,226.9,0.05]
[1757611287487,6.94,227.09,226.9,0.05]
[1757611287684,6.94,227.07,226.9,0.05]
[1757611287884,6.94,227.05,226.9,0.05]
[1757611288089,6.94,227.03,226.9,0.05]
[1757611289594,6.94,227.02,226.91,62.0]
[1757611290798,6.94,227.02,226.9,0.05]
[1757611292695,13.21,227.17,226.9,0.05]
[1757611292696,6.94,227.2,226.9,0.05]
[1757611292997,6.94,227.18,226.91,0.06]
[1757611293198,6.94,227.16,226.91,0.06]
[1757611293396,6.94,227.14,226.91,0.06]
[1757611293597,6.94,227.12,226.91,0.06]
[1757611293898,6.94,227.1,226.93,0.06]
[1757611297299,6.94,227.13,226.95,0.06]
[1757611297500,10.52553377,227.12,226.97,0.06]
[1757611297700,6.94,227.12,226.97,0.06]
[1757611299404,6.94,227.1,226.97,0.06]
[1757611310209,8.16,227.18,226.97,0.06]
[1757611310408,13.90827327,227.17,226.97,0.06]
[1757611310604,6.94,227.15,226.97,0.06]
[1757611310810,6.94,227.13,226.97,0.06]
[1757611311011,6.94,227.11,226.97,0.06]
[1757611315018,6.94,227.11,227.02,0.03135574]
[1757611316117,3.59692179,227.1,227.02,0.03135574]
[1757611316418,3.59692179,227.1,226.99,0.04]
[1757611316419,6.94,227.09,226.99,0.04]
[1757611316618,6.94,227.07,226.99,0.04]
[1757611316812,6.94,227.07,227.04,0.03175119]
[1757611317008,0.02789014,227.08,227.04,0.03175119]
[1757611317311,6.94,227.07,226.96,43.12751351]
[1757611317517,0.02789014,227.08,227.04,0.03200759]
[1757611317717,6.97,227.07,226.96,43.12751351]
[1757611317913,0.02789014,227.08,227.04,0.02974844]
[1757611318112,0.02789014,227.08,226.96,38.2]
[1757611318314,0.02789014,227.08,226.96,0.04]
[1757611318519,6.97,227.07,227.04,0.02884027]
[1757611320423,0.02789014,227.08,227.04,0.02884027]
[1757611320723,3.6063185,227.07,227.04,0.02884027]
[1757611320924,0.02789014,227.08,227.04,0.02884027]
[1757611321115,6.97,227.06,227.04,0.02884027]
[1757611321417,0.02789014,227.08,227.04,0.02884027]
[1757611321620,6.97,227.06,227.04,0.02884027]
[1757611321817,0.02789014,227.08,227.05,0.05]
[1757611323018,0.02789014,227.08,227.04,0.02884027]
[1757611323218,0.02789014,227.08,227.05,0.05]
[1757611323723,0.02789014,227.08,227.04,0.02884027]
[1757611325726,6.97,227.07,227.04,0.02884027]
[1757611325912,0.02789014,227.08,227.04,0.02884027]
[1757611326113,0.02789014,227.08,227.04,0.07884027]
[1757611326823,0.02789014,227.08,227.05,0.05]
[1757611327922,0.02789014,227.08,227.06,0.05]
[1757611329820,0.02789014,227.08,227.05,0.44]
[1757611330123,6.97,227.07,227.04,0.02884027]
[1757611330516,0.02789014,227.08,227.04,0.07884027]
[1757611330725,6.99789014,227.08,227.04,0.07884027]
[1757611332419,0.02789014,227.08,227.05,0.05]
[1757611333018,0.02789014,227.08,227.04,0.02884027]
[1757611333220,0.02789014,227.08,227.05,0.05]
[1757611333418,0.02789014,227.08,227.04,0.02884027]
[1757611333619,0.02789014,227.08,227.05,0.05]
[1757611333925,0.02789014,227.08,227.04,0.02884027]
[1757611334529,0.02789014,227.08,227.05,0.05]
[1757611334730,0.02789014,227.08,227.04,0.02884027]
[1757611335624,0.02789014,227.08,227.05,0.05]
[1757611336227,0.02789014,227.08,227.04,0.02884027]
[1757611336425,0.02789014,227.08,227.04,5.39635378]
[1757611336621,0.02789014,227.08,227.05,0.05]
[1757611336834,0.02789014,227.08,227.04,5.39635378]
[1757611337226,0.02789014,227.08,227.05,5.36751351]
[1757611337422,0.02789014,227.08,227.07,4.97751351]
[1757611337627,6.97,227.07,227.04,4.93901741]
[1757611338125,6.97,227.07,227.04,0.02884027]
[1757611338834,0.02789014,227.08,227.04,0.02884027]
[1757611339139,0.02789014,227.08,227.04,0.07884027]
[1757611341036,0.02789014,227.08,227.04,0.02884027]
[1757611341238,0.02789014,227.08,227.04,4.93901741]
[1757611341435,0.02789014,227.08,227.05,4.91017714]
[1757611341637,0.02789014,227.08,227.07,0.05]
[1757611341937,0.02789014,227.08,227.07,7.44127027]
[1757611342139,0.02789014,227.08,227.07,7.85278788]
[1757611343444,0.02789014,227.08,227.07,0.49]
[1757611344244,0.02789014,227.08,227.07,62.49]
[1757611345447,0.02789014,227.08,227.07,172.31]
[1757611347242,0.02789014,227.08,227.07,114.70081963]
[1757611347448,0.02789014,227.08,227.07,109.8]
[1757611347952,0.02789014,227.08,227.07,109.86]
[1757611349350,0.02789014,227.08,227.07,115.20081963]
[1757611349552,0.02789014,227.08,227.07,110.3]
[1757611350243,0.02789014,227.08,227.07,172.3]
[1757611350751,0.02789014,227.08,227.07,62.06]
[1757611350951,0.02789014,227.08,227.07,171.86]
[1757611352353,0.02789014,227.08,227.07,176.75823262]
[1757611354352,0.02789014,227.08,227.07,176.75786235]
[1757611357854,0.02789014,227.08,227.07,177.19786235]
[1757611359253,0.02789014,227.08,227.07,176.75786235]
[1757611360554,0.02789014,227.08,227.07,66.95786235]
[1757611360754,0.02789014,227.08,227.07,176.71786235]
[1757611362452,0.02789014,227.08,227.07,66.95786235]
[1757611362647,0.02789014,227.08,227.07,176.71786235]
[1757611363255,0.02789014,227.08,227.07,171.82]
[1757611364152,0.02789014,227.08,227.07,179.18278788]
[1757611364855,6.99,227.18,227.08,0.47210986]
[1757611365155,6.99,227.18,227.1,4.90167341]
[1757611365357,6.99,227.18,227.11,109.74]
[1757611365655,6.99,227.18,227.11,123.21485975]
[1757611366155,6.99,227.18,227.12,0.03169555]
[1757611366354,6.99,227.3,227.13,109.74]
[1757611366548,3.38096096,227.29,227.13,109.74]
[1757611366748,6.99,227.27,227.13,109.74]
[1757611366959,6.99,227.3,227.19,0.03047104]
[1757611367159,6.99,227.28,227.19,0.03047104]
[1757611367360,6.99,227.26,227.19,0.03047104]
[1757611367859,7.43,227.26,227.19,0.03047104]
[1757611368055,6.99,227.26,227.19,0.03047104]
[1757611401596,6.99,227.26,227.2,0.04]
[1757611404087,7.43,227.35,227.2,0.04]
[1757611404293,7.43,227.33,227.2,10.74167341]
[1757611404595,3.38491319,227.32,227.24,0.0316967]
[1757611404898,7.43,227.31,227.24,0.0316967]
[1757611407690,7.43,227.31,227.25,0.04]
[1757611407894,7.43,227.31,227.24,0.0316967]
[1757611416498,7.43,227.31,227.25,0.04]
[1757611419103,7.43,227.31,227.24,0.0316967]
[1757611432717,4.92396791,227.36,227.14,170.13035928]
[1757611432916,7.05,227.34,227.14,165.22868587]
[1757611433117,4.92396791,227.35,227.14,165.22868587]
[1757611433317,7.05,227.34,227.14,165.22868587]
[1757611433711,7.05,227.33,227.14,165.22868587]
[1757611433917,7.05,227.33,227.15,0.07]
[1757611434122,25.17,227.33,227.15,0.07]
[1757611435823,7.05,227.33,227.22,0.02958449]
[1757611436026,41.73,227.33,227.22,0.02958449]
[1757611436824,7.05,227.33,227.22,0.02958449]
[1757611440526,106.31,227.33,227.22,0.02958449]
[1757611441922,7.05,227.33,227.22,0.02958449]
[1757611442127,116.43,227.33,227.22,0.02958449]
[1757611443225,7.05,227.33,227.22,0.09958449]
[1757611443432,116.41,227.33,227.22,0.09958449]
[1757611444031,7.13,227.29,227.22,0.09958449]
[1757611449037,0.03237509,227.3,227.23,0.07]
[1757611452636,0.03237509,227.3,227.22,0.02958449]
[1757611456540,0.03237509,227.3,227.22,49.50958449]
[1757611461441,0.03237509,227.3,227.22,0.02958449]
[1757611475444,0.03237509,227.3,227.28,4.90167341]
[1757611475847,0.03237509,227.3,227.29,109.14]
[1757611476249,0.03237509,227.3,227.27,4.93010165]
[1757611476450,0.03237509,227.3,227.28,114.04167341]
[1757611477446,0.03237509,227.3,227.28,109.14]
[1757611478143,0.03237509,227.3,227.29,109.12]
[1757611482450,0.03237509,227.3,227.27,4.93010165]
[1757611482753,0.03237509,227.3,227.28,109.1]
[1757611483554,0.03237509,227.3,227.27,4.93010165]
[1757611483953,0.03237509,227.3,227.28,109.08]
[1757611486657,0.03237509,227.3,227.27,4.93010165]
[1757611486857,0.03237509,227.3,227.29,109.06]
[1757611487956,0.03237509,227.3,227.27,4.93010165]
[1757611488153,0.03237509,227.3,227.28,109.04]
[1757611491155,0.03237509,227.3,227.27,4.93010165]
[1757611491360,0.03237509,227.3,227.28,109.02]
[1757611494064,0.03237509,227.3,227.28,113.92167341]
[1757611494463,0.03237509,227.3,227.29,4.90167341]
[1757611496568,0.03237509,227.3,227.29,109.0]
[1757611496767,0.03237509,227.3,227.29,108.98]
[1757611497971,0.03237509,227.3,227.27,0.02842824]
[1757611498159,0.03237509,227.3,227.28,108.98]
[1757611499174,0.03237509,227.3,227.29,108.96]
[1757611499668,0.03237509,227.3,227.27,0.02842824]
[1757611499873,0.03237509,227.3,227.29,108.96]
[1757611500372,0.03237509,227.3,227.27,0.02842824]
[1757611500568,0.03237509,227.3,227.28,108.96]
[1757611508278,0.03237509,227.3,227.28,113.86167341]
[1757611510383,0.03237509,227.3,227.29,108.92]
[1757611512688,0.03237509,227.3,227.29,113.90167341]
[1757611514290,0.03237509,227.3,227.29,109.0]
[1757611514490,0.03237509,227.3,227.29,116.36278788]
[1757611514787,0.03237509,227.3,227.29,0.08]
[1757611514981,0.03237509,227.3,227.29,108.96]
[1757611515188,0.03237509,227.3,227.29,113.87023306]
[1757611515486,0.03237509,227.3,227.29,108.96]
[1757611515686,0.03237509,227.3,227.29,113.87023306]
[1757611518094,0.03237509,227.3,227.29,108.96]
[1757611518992,0.03237509,227.3,227.29,116.32278788]
[1757611519193,0.03237509,227.3,227.29,108.96]
[1757611520291,0.03237509,227.3,227.29,0.08]
[1757611520491,0.03237509,227.3,227.29,108.92]
[1757611520693,0.03237509,227.3,227.29,0.08]
[1757611520993,0.03237509,227.3,227.29,39.14]
[1757611524593,0.03237509,227.3,227.29,46.52011578]
[1757611525196,0.03237509,227.3,227.29,39.14]
[1757611526297,0.03237509,227.3,227.29,46.52011578]
[1757611529996,0.03237509,227.3,227.29,116.24011578]
[1757611532800,0.03237509,227.3,227.29,108.86]
[1757611542106,0.03237509,227.3,227.29,116.1804099]
[1757611543608,0.03237509,227.3,227.29,108.8]
[1757611544097,0.03237509,227.3,227.29,0.08]
[1757611544297,0.03237509,227.3,227.29,116.16132221]
[1757611547510,0.03237509,227.3,227.29,7.46132221]
[1757611547712,0.03237509,227.3,227.29,116.14132221]
[1757611548314,0.03237509,227.3,227.29,7.46132221]
[1757611548507,0.03237509,227.3,227.29,116.14132221]
[1757611552714,0.03237509,227.3,227.29,108.76]
[1757611554211,0.03237509,227.3,227.29,0.08]
[1757611554411,0.03237509,227.3,227.29,108.72]
[1757611555910,7.27,227.39,227.29,109.08]
[1757611556110,7.27,227.39,227.37,0.05]
[1757611556317,7.27,227.39,227.38,108.62]
[1757611557012,7.71,227.39,227.34,4.92277184]
[1757611557218,7.27,227.49,227.36,0.03183027]
[1757611557412,6.84,227.47,227.36,0.03183027]
[1757611557611,3.41937075,227.46,227.37,106.92]
[1757611557916,6.84,227.44,227.39,0.03097249]
[1757611558105,103.24329472,227.53,227.4,108.62]
[1757611558309,3.41894447,227.52,227.4,108.62]
[1757611558511,6.84,227.5,227.4,108.62]
[1757611558812,6.84,227.48,227.4,108.62]
[1757611559119,0.44,227.52,227.4,108.62]
[1757611559120,6.84,227.46,227.4,108.62]
[1757611559421,3.41894447,227.45,227.4,108.62]
[1757611559723,103.68329472,227.53,227.4,108.62]
[1757611560018,6.84,227.51,227.4,108.64925978]
[1757611560320,6.84,227.49,227.4,108.64925978]
[1757611560516,3.38657725,227.48,227.4,108.64925978]
[1757611560818,6.84,227.46,227.4,108.62925978]
[1757611561013,6.84,227.44,227.4,108.62925978]
[1757611561209,6.84,227.42,227.4,108.62925978]
[1757611561413,6.84,227.51,227.4,108.62925978]
[1757611561717,6.84,227.49,227.4,108.62925978]
[1757611561919,3.41821049,227.48,227.4,108.62925978]
[1757611562117,6.84,227.46,227.4,108.62925978]
[1757611562325,3.38711578,227.45,227.4,108.62925978]
[1757611562522,6.84,227.43,227.4,108.62925978]
[1757611562722,6.84,227.47,227.4,0.02925978]
[1757611562924,6.84,227.45,227.4,40.26925978]
[1757611563221,6.84,227.43,227.4,0.02925978]
[1757611565227,6.84,227.47,227.4,0.02925978]
[1757611565427,6.84,227.45,227.4,0.02925978]
[1757611565726,6.84,227.43,227.4,0.02925978]
[1757611567526,6.84,227.47,227.4,0.02925978]
[1757611567717,6.84,227.45,227.4,0.02925978]
[1757611567917,0.03109471,227.48,227.4,0.02925978]
[1757611567918,6.84,227.43,227.4,0.02925978]
[1757611568227,6.84,227.47,227.4,0.02925978]
[1757611568428,6.84,227.45,227.4,0.02925978]
[1757611568627,6.84,227.43,227.4,0.02925978]
[1757611569024,6.84,227.41,227.3,4.92277184]
[1757611569330,6.84,227.39,227.29,139.44051937]
[1757611569531,6.84,227.37,227.29,139.44051937]
[1757611569721,4.92396791,227.45,227.29,139.44051937]
[1757611570026,6.77640004,227.44,227.29,139.44051937]
[1757611570226,6.84,227.38,227.29,139.44051937]
[1757611570431,3.38683927,227.37,227.29,139.44051937]
[1757611570725,0.03255413,227.39,227.29,139.44051937]
[1757611570930,6.84,227.37,227.29,139.44051937]
[1757611571133,6.84,227.38,227.29,139.44051937]
[1757611571332,6.84,227.36,227.29,139.44051937]
[1757611571530,6.84,227.38,227.29,139.44051937]
[1757611571833,0.03255413,227.39,227.29,139.44051937]
[1757611571834,6.84,227.36,227.29,139.44051937]
[1757611572028,0.03255413,227.39,227.29,139.44051937]
[1757611572227,6.77259902,227.38,227.29,139.44051937]
[1757611572428,6.84,227.36,227.29,139.44051937]
[1757611572632,6.84,227.36,227.29,139.55051937]
[1757611573437,6.84,227.36,227.3,0.11]
[1757611574738,6.84,227.38,227.29,139.44051937]
[1757611574939,6.84,227.38,227.3,0.11]
[1757611577840,0.03255413,227.39,227.31,108.54]
[1757611578733,6.84,227.38,227.31,108.54]
[1757611580840,6.84,227.38,227.32,0.11]
[1757611581041,6.84,227.38,227.33,108.52]
[1757611581245,6.84,227.38,227.34,0.11]
[1757611581639,6.84,227.38,227.33,108.52]
[1757611581941,6.84,227.38,227.34,108.52]
[1757611582133,6.84,227.38,227.35,0.11]
[1757611583243,0.03255413,227.39,227.35,0.11]
[1757611583544,0.03255413,227.39,227.34,108.52]
[1757611583744,6.87255413,227.39,227.34,108.52]
[1757611584038,6.87255413,227.39,227.35,0.11]
[1757611584433,6.87255413,227.39,227.34,108.52]
[1757611584636,6.87255413,227.39,227.35,0.11]
[1757611584840,6.87255413,227.39,227.34,108.52]
[1757611585042,0.03255413,227.39,227.35,0.11]
[1757611586047,0.03255413,227.39,227.34,108.52]
[1757611586247,0.03255413,227.39,227.35,0.11]
[1757611589946,0.03255413,227.39,227.35,62.11]
[1757611590246,0.03255413,227.39,227.36,0.1]
[1757611590646,0.03255413,227.39,227.35,194.43320783]
[1757611590948,0.03255413,227.39,227.36,108.48]
[1757611591150,0.03255413,227.39,227.37,0.1]
[1757611591740,0.03255413,227.39,227.36,108.48]
[1757611591944,0.03255413,227.39,227.37,0.1]
[1757611592243,0.03255413,227.39,227.35,132.43320783]
[1757611592444,0.03255413,227.39,227.37,0.1]
[1757611592747,0.03255413,227.39,227.38,108.46]
[1757611592948,0.03255413,227.39,227.38,0.1]
[1757611593148,0.03255413,227.39,227.38,108.56]
[1757611597754,0.03255413,227.39,227.38,108.54]
[1757611602056,7.31,227.5,227.38,108.98]
[1757611602352,7.31,227.5,227.39,0.07]
[1757611603956,7.31,227.5,227.42,0.02776142]
[1757611604257,7.31,227.58,227.43,108.4]
[1757611604453,6.40575361,227.57,227.43,108.4]
[1757611604657,3.01326214,227.56,227.43,108.4]
[1757611604853,7.31,227.54,227.43,108.4]
[1757611605059,7.31,227.58,227.43,108.4]
[1757611605358,7.31,227.56,227.47,0.02928051]
[1757611605554,7.31,227.54,227.47,0.02928051]
[1757611621270,3.01354918,227.53,227.47,0.02928051]
[1757611621575,93.08273273,227.59,227.47,0.02928051]
[1757611621576,7.32,227.52,227.47,0.02928051]
[1757611625467,7.32,227.5,227.47,0.02928051]
[1757611625671,7.32,227.58,227.47,0.02928051]
[1757611625863,7.32,227.56,227.47,0.02928051]
[1757611626066,7.32,227.54,227.47,0.02928051]
[1757611626265,7.32,227.52,227.47,0.02928051]
[1757611626466,7.32,227.5,227.47,0.02928051]